[Event "Early-Titled-Tuesday-Blitz-April-02-2024"]
[Site "Chess.com"]
[Date "2024.04.02"]
[Round "3"]
[White "Egor_Koshulyan"]
[Black "Baku_Boulevard"]
[Result "0-1"]
[WhiteElo "2747"]
[BlackElo "3039"]
[TimeControl "180+1"]
[EndTime "8:28:45 PDT"]
[Termination "Baku_Boulevard won by resignation"]

1. f4 {[%clk 0:03:00.9]} 1... d5 {[%clk 0:02:58.2]} 2. Nf3 {[%clk 0:03:00.9]}
2... g6 {[%clk 0:02:58.2]} 3. g3 {[%clk 0:03:00.8]} 3... Bg7 {[%clk 0:02:58.6]}
4. Bg2 {[%clk 0:03:01.4]} 4... c5 {[%clk 0:02:59.1]} 5. O-O {[%clk 0:03:01.9]}
5... Nc6 {[%clk 0:02:59.8]} 6. d3 {[%clk 0:03:02.6]} 6... Nf6 {[%clk 0:03:00.3]}
7. Nc3 {[%clk 0:03:03.3]} 7... O-O {[%clk 0:03:00.5]} 8. e4 {[%clk 0:03:03.4]}
8... dxe4 {[%clk 0:02:54]} 9. dxe4 {[%clk 0:03:04.3]} 9... Be6 {[%clk
0:02:34.2]} 10. Be3 {[%clk 0:02:56.4]} 10... Qa5 {[%clk 0:02:30.2]} 11. Ng5
{[%clk 0:02:31.6]} 11... Ng4 {[%clk 0:02:21.9]} 12. Bd2 {[%clk 0:02:11.2]} 12...
Bc8 {[%clk 0:02:21.6]} 13. e5 {[%clk 0:02:03.7]} 13... h6 {[%clk 0:02:06.3]} 14.
Nge4 {[%clk 0:01:52.7]} 14... f5 {[%clk 0:01:40.4]} 15. exf6 {[%clk 0:01:45.4]}
15... Nxf6 {[%clk 0:01:38.5]} 16. Nxf6+ {[%clk 0:01:34.2]} 16... exf6 {[%clk
0:01:36.6]} 17. f5 {[%clk 0:00:45.6]} 17... Bxf5 {[%clk 0:01:34.1]} 18. Rxf5
{[%clk 0:00:45.8]} 18... gxf5 {[%clk 0:01:35]} 19. Qh5 {[%clk 0:00:46.2]} 19...
Rad8 {[%clk 0:01:02.2]} 20. Bxh6 {[%clk 0:00:41.6]} 20... Qc7 {[%clk 0:01:02.4]}
21. Bd5+ {[%clk 0:00:28.7]} 21... Rxd5 {[%clk 0:01:02.3]} 22. Nxd5 {[%clk
0:00:29.6]} 22... Qf7 {[%clk 0:01:02.8]} 23. Qxf7+ {[%clk 0:00:29.6]} 23... Rxf7
{[%clk 0:00:58.4]} 24. Bxg7 {[%clk 0:00:29.8]} 24... Kxg7 {[%clk 0:00:59.3]} 25.
Nf4 {[%clk 0:00:24]} 25... Re7 {[%clk 0:00:57]} 26. Rf1 {[%clk 0:00:22.2]} 26...
Kf7 {[%clk 0:00:55.2]} 27. Rf2 {[%clk 0:00:20.7]} 27... b6 {[%clk 0:00:52.3]}
28. c3 {[%clk 0:00:20]} 28... Re1+ {[%clk 0:00:50.4]} 29. Kg2 {[%clk 0:00:20.2]}
29... Ne5 {[%clk 0:00:50.1]} 30. h3 {[%clk 0:00:12.7]} 30... Rb1 {[%clk
0:00:49.7]} 31. b3 {[%clk 0:00:09.6]} 31... c4 {[%clk 0:00:48.6]} 32. bxc4
{[%clk 0:00:04.3]} 32... Nxc4 {[%clk 0:00:49.1]} 33. Nd5 {[%clk 0:00:05.2]}
33... Rb5 {[%clk 0:00:48.7]} 34. Nf4 {[%clk 0:00:02.6]} 34... Ra5 {[%clk
0:00:48.8]} 35. Nd3 {[%clk 0:00:02.8]} 35... Ra3 {[%clk 0:00:47.7]} 36. Nb4
{[%clk 0:00:03.3]} 36... Rxc3 {[%clk 0:00:45.1]} 37. h4 {[%clk 0:00:03.9]} 37...
Ne3+ {[%clk 0:00:44.1]} 38. Kh3 {[%clk 0:00:04.4]} 38... Rc1 {[%clk 0:00:43.8]}
39. h5 {[%clk 0:00:02.6]} 39... Rd1 {[%clk 0:00:40.5]} 40. Rh2 {[%clk
0:00:03.2]} 40... Ng4 {[%clk 0:00:39.9]} 41. Rc2 {[%clk 0:00:01.6]} 41... Rh1+
{[%clk 0:00:39.6]} 42. Kg2 {[%clk 0:00:02.2]} 42... Rb1 {[%clk 0:00:38.1]} 43.
Rc7+ {[%clk 0:00:03.1]} 43... Ke6 {[%clk 0:00:38.1]} 44. Nc6 {[%clk 0:00:03.5]}
44... Rb2+ {[%clk 0:00:35.5]} 45. Kg1 {[%clk 0:00:03.3]} 45... a5 {[%clk
0:00:34.5]} 46. Nd8+ {[%clk 0:00:03]} 46... Kd5 {[%clk 0:00:33.6]} 47. Rd7+
{[%clk 0:00:02.3]} 47... Ke4 {[%clk 0:00:33.7]} 48. Nc6 {[%clk 0:00:01.2]} 48...
Rxa2 {[%clk 0:00:31]} 49. h6 {[%clk 0:00:01.2]} 49... Nxh6 {[%clk 0:00:30.9]}
50. Re7+ {[%clk 0:00:01.8]} 50... Kd5 {[%clk 0:00:29.8]} 51. Nd8 {[%clk
0:00:01.8]} 51... Ng4 {[%clk 0:00:29.1]} 52. Rd7+ {[%clk 0:00:02.1]} 52... Ke4
{[%clk 0:00:29.2]} 53. Ne6 {[%clk 0:00:01.9]} 53... a4 {[%clk 0:00:26.4]} 54.
Nf4 {[%clk 0:00:02.5]} 54... Ne5 {[%clk 0:00:24.3]} 55. Rd1 {[%clk 0:00:02]}
55... Nf3+ {[%clk 0:00:24.4]} 56. Kf1 {[%clk 0:00:02.7]} 56... a3 {[%clk
0:00:21.1]} 57. Rb1 {[%clk 0:00:02.6]} 57... Nd2+ {[%clk 0:00:19.9]} 58. Ke1
{[%clk 0:00:02.4]} 58... Nxb1 {[%clk 0:00:20.8]} 59. Kd1 {[%clk 0:00:03]} 59...
Nc3+ {[%clk 0:00:20.9]} 60. Kc1 {[%clk 0:00:03.9]} 60... b5 {[%clk 0:00:21]} 0-1

[Event "Early-Titled-Tuesday-Blitz-April-02-2024"]
[Site "Chess.com"]
[Date "2024.04.02"]
[Round "3"]
[White "Bauman_Guy"]
[Black "CarlosjPineror"]
[Result "1-0"]
[WhiteElo "2907"]
[BlackElo "2677"]
[TimeControl "180+1"]
[EndTime "8:28:48 PDT"]
[Termination "Bauman_Guy won on time"]

1. e4 {[%clk 0:03:00.9]} 1... c5 {[%clk 0:02:51.4]} 2. Nf3 {[%clk 0:03:01.1]}
2... e6 {[%clk 0:02:51.4]} 3. d4 {[%clk 0:03:01.3]} 3... cxd4 {[%clk 0:02:52.2]}
4. Nxd4 {[%clk 0:03:02.2]} 4... a6 {[%clk 0:02:52.6]} 5. Bd3 {[%clk 0:03:02.1]}
5... Qc7 {[%clk 0:02:52.9]} 6. O-O {[%clk 0:03:02.5]} 6... Nf6 {[%clk
0:02:53.1]} 7. Qe2 {[%clk 0:03:02.6]} 7... d6 {[%clk 0:02:52.3]} 8. c4 {[%clk
0:03:03]} 8... Be7 {[%clk 0:02:52.4]} 9. Nc3 {[%clk 0:03:03.3]} 9... Nbd7 {[%clk
0:02:52.1]} 10. b3 {[%clk 0:03:03.4]} 10... b6 {[%clk 0:02:52.3]} 11. Bb2 {[%clk
0:03:03.7]} 11... Bb7 {[%clk 0:02:52.1]} 12. Kh1 {[%clk 0:03:03.7]} 12... h5
{[%clk 0:02:50]} 13. Rae1 {[%clk 0:02:58.6]} 13... h4 {[%clk 0:02:33.3]} 14. Nd5
{[%clk 0:02:49.5]} 14... Qd8 {[%clk 0:02:24.1]} 15. Nxe7 {[%clk 0:02:31.2]}
15... Qxe7 {[%clk 0:02:23.2]} 16. f4 {[%clk 0:02:30.5]} 16... h3 {[%clk
0:02:14]} 17. g4 {[%clk 0:02:27.3]} 17... Nc5 {[%clk 0:02:03.2]} 18. g5 {[%clk
0:02:04.7]} 18... Nfxe4 {[%clk 0:01:51.5]} 19. Kg1 {[%clk 0:02:02.4]} 19... Nxg5
{[%clk 0:01:36.5]} 20. Nf5 {[%clk 0:02:00.4]} 20... Qc7 {[%clk 0:01:22.8]} 21.
Nxg7+ {[%clk 0:01:39.1]} 21... Kd7 {[%clk 0:01:16.3]} 22. fxg5 {[%clk
0:01:37.5]} 22... Raf8 {[%clk 0:01:05.1]} 23. Rf4 {[%clk 0:00:39.3]} 23... Qc6
{[%clk 0:00:56.7]} 24. Be4 {[%clk 0:00:39.1]} 24... Nxe4 {[%clk 0:00:53.7]} 25.
Rxe4 {[%clk 0:00:39.4]} 25... Rhg8 {[%clk 0:00:48.6]} 26. Kf2 {[%clk 0:00:24.4]}
26... Qc5+ {[%clk 0:00:42]} 27. Bd4 {[%clk 0:00:24.4]} 27... Qxg5 {[%clk
0:00:42.4]} 28. Rg4 {[%clk 0:00:25]} 28... Qh6 {[%clk 0:00:35.3]} 29. Reg1
{[%clk 0:00:24.8]} 29... e5 {[%clk 0:00:34]} 30. Be3 {[%clk 0:00:24.7]} 30...
Qf6+ {[%clk 0:00:32.2]} 31. Ke1 {[%clk 0:00:24.7]} 31... Bg2 {[%clk 0:00:19.4]}
32. R1xg2 {[%clk 0:00:20.6]} 32... hxg2 {[%clk 0:00:19.5]} 33. Qxg2 {[%clk
0:00:21.5]} 33... Qd8 {[%clk 0:00:14]} 34. Nf5 {[%clk 0:00:17.6]} 34... Rxg4
{[%clk 0:00:11.7]} 35. Qxg4 {[%clk 0:00:18.5]} 35... Kc7 {[%clk 0:00:12.4]} 36.
h4 {[%clk 0:00:18.2]} 36... Rg8 {[%clk 0:00:12]} 37. Qf3 {[%clk 0:00:18.5]}
37... Qd7 {[%clk 0:00:10.3]} 38. h5 {[%clk 0:00:17.8]} 38... Qe6 {[%clk
0:00:05.6]} 39. h6 {[%clk 0:00:16.2]} 39... Qg6 {[%clk 0:00:05.8]} 40. Ke2
{[%clk 0:00:14]} 40... Rh8 {[%clk 0:00:03.7]} 41. Bf2 {[%clk 0:00:13.6]} 41...
f6 {[%clk 0:00:04]} 42. a4 {[%clk 0:00:13.2]} 42... Qg5 {[%clk 0:00:04.1]} 43.
Qe4 {[%clk 0:00:10.5]} 43... Qh5+ {[%clk 0:00:03.7]} 44. Kd2 {[%clk 0:00:11]}
44... Qg5+ {[%clk 0:00:04.3]} 45. Be3 {[%clk 0:00:11.4]} 45... Qg6 {[%clk
0:00:03.2]} 46. Qd3 {[%clk 0:00:11.3]} 46... Rd8 {[%clk 0:00:02.5]} 47. Kc3
{[%clk 0:00:10.9]} 47... Qg2 {[%clk 0:00:02.4]} 48. Ne7 {[%clk 0:00:08.7]} 48...
Qa2 {[%clk 0:00:02.4]} 49. Nd5+ {[%clk 0:00:08.8]} 49... Kb7 {[%clk 0:00:03]}
50. Bc1 {[%clk 0:00:07.6]} 50... Rg8 {[%clk 0:00:02.1]} 51. Bb2 {[%clk
0:00:06.5]} 51... Rg2 {[%clk 0:00:02.2]} 52. Qc2 {[%clk 0:00:02.5]} 1-0

[Event "Early-Titled-Tuesday-Blitz-April-02-2024"]
[Site "Chess.com"]
[Date "2024.04.02"]
[Round "3"]
[White "ChessQueen"]
[Black "artin10862"]
[Result "1/2-1/2"]
[WhiteElo "2723"]
[BlackElo "2922"]
[TimeControl "180+1"]
[EndTime "8:28:53 PDT"]
[Termination "Game drawn - insufficient material"]

1. e4 {[%clk 0:03:00.9]} 1... c5 {[%clk 0:02:58.4]} 2. c3 {[%clk 0:03:01.2]}
2... d5 {[%clk 0:02:50.5]} 3. exd5 {[%clk 0:03:01.3]} 3... Qxd5 {[%clk
0:02:51.4]} 4. d4 {[%clk 0:03:01.9]} 4... Nf6 {[%clk 0:02:46.5]} 5. Nf3 {[%clk
0:03:01.8]} 5... Bg4 {[%clk 0:02:44.6]} 6. Be2 {[%clk 0:02:59]} 6... cxd4 {[%clk
0:02:25.8]} 7. cxd4 {[%clk 0:02:58]} 7... e6 {[%clk 0:02:26.3]} 8. Nc3 {[%clk
0:02:57]} 8... Qa5 {[%clk 0:02:24.5]} 9. h3 {[%clk 0:02:56.2]} 9... Bh5 {[%clk
0:02:22.6]} 10. g4 {[%clk 0:02:50]} 10... Bg6 {[%clk 0:02:22.6]} 11. Ne5 {[%clk
0:02:50.2]} 11... Nc6 {[%clk 0:02:17.8]} 12. Bb5 {[%clk 0:02:43.4]} 12... Bb4
{[%clk 0:02:09.8]} 13. O-O {[%clk 0:01:32.9]} 13... Bxc3 {[%clk 0:01:46.8]} 14.
Bxc6+ {[%clk 0:01:33.1]} 14... bxc6 {[%clk 0:01:47.3]} 15. Qf3 {[%clk
0:01:16.1]} 15... Nd5 {[%clk 0:01:00.6]} 16. bxc3 {[%clk 0:01:10.9]} 16... Qxc3
{[%clk 0:01:00.3]} 17. Qxc3 {[%clk 0:00:55.2]} 17... Nxc3 {[%clk 0:01:01.2]} 18.
Nxc6 {[%clk 0:00:55.3]} 18... Be4 {[%clk 0:00:47.3]} 19. Ne5 {[%clk 0:00:55.4]}
19... Ne2+ {[%clk 0:00:46.5]} 20. Kh2 {[%clk 0:00:55.7]} 20... Nxd4 {[%clk
0:00:46.8]} 21. Bb2 {[%clk 0:00:53.7]} 21... Nc2 {[%clk 0:00:43.6]} 22. Rac1
{[%clk 0:00:52.2]} 22... f6 {[%clk 0:00:42.8]} 23. f3 {[%clk 0:00:46.9]} 23...
fxe5 {[%clk 0:00:18.8]} 24. fxe4 {[%clk 0:00:47.1]} 24... Nd4 {[%clk 0:00:19.5]}
25. Rc7 {[%clk 0:00:45.8]} 25... Rf8 {[%clk 0:00:19.5]} 26. Rxf8+ {[%clk
0:00:41.7]} 26... Kxf8 {[%clk 0:00:20.4]} 27. Ba3+ {[%clk 0:00:42.3]} 27... Kg8
{[%clk 0:00:20.6]} 28. Bc5 {[%clk 0:00:33]} 28... a5 {[%clk 0:00:20.5]} 29. Kg3
{[%clk 0:00:16.2]} 29... a4 {[%clk 0:00:18.2]} 30. Rb7 {[%clk 0:00:11.2]} 30...
Rc8 {[%clk 0:00:13.6]} 31. Bd6 {[%clk 0:00:09.9]} 31... Rc3+ {[%clk 0:00:12.3]}
32. Kg2 {[%clk 0:00:10.3]} 32... Rc2+ {[%clk 0:00:11.6]} 33. Kg3 {[%clk
0:00:08.5]} 33... Ne2+ {[%clk 0:00:09]} 34. Kf3 {[%clk 0:00:07.9]} 34... Nd4+
{[%clk 0:00:09.3]} 35. Kg3 {[%clk 0:00:08.2]} 35... Rxa2 {[%clk 0:00:10.2]} 36.
Bxe5 {[%clk 0:00:07.3]} 36... Nc6 {[%clk 0:00:10.6]} 37. Rxg7+ {[%clk
0:00:06.6]} 37... Kf8 {[%clk 0:00:11]} 38. Bf6 {[%clk 0:00:06.1]} 38... a3
{[%clk 0:00:09.7]} 39. Rc7 {[%clk 0:00:05.6]} 39... Na5 {[%clk 0:00:07]} 40. Ra7
{[%clk 0:00:05.3]} 40... Nc4 {[%clk 0:00:07.3]} 41. Bg7+ {[%clk 0:00:05.7]}
41... Ke8 {[%clk 0:00:07.4]} 42. Kh4 {[%clk 0:00:06]} 42... Re2 {[%clk
0:00:06.9]} 43. Kh5 {[%clk 0:00:05.7]} 43... e5 {[%clk 0:00:06.1]} 44. Kh6
{[%clk 0:00:05.5]} 44... a2 {[%clk 0:00:06.4]} 45. Kxh7 {[%clk 0:00:04.3]} 45...
Rh2 {[%clk 0:00:06.6]} 46. Kg8 {[%clk 0:00:04.2]} 46... Kd8 {[%clk 0:00:05.4]}
47. Bf6+ {[%clk 0:00:04.1]} 47... Kc8 {[%clk 0:00:05.6]} 48. g5 {[%clk
0:00:04.7]} 48... Kb8 {[%clk 0:00:06.1]} 49. Ra4 {[%clk 0:00:04.8]} 49... Rg2
{[%clk 0:00:03.9]} 50. h4 {[%clk 0:00:04.4]} 50... Kb7 {[%clk 0:00:04.1]} 51. h5
{[%clk 0:00:04.8]} 51... Kb6 {[%clk 0:00:04.2]} 52. h6 {[%clk 0:00:05.2]} 52...
Kb5 {[%clk 0:00:04.8]} 53. Rxa2 {[%clk 0:00:05.6]} 53... Rxa2 {[%clk 0:00:05.6]}
54. h7 {[%clk 0:00:06.4]} 54... Ra8+ {[%clk 0:00:06.1]} 55. Kg7 {[%clk
0:00:06.6]} 55... Nd6 {[%clk 0:00:06.8]} 56. h8=Q {[%clk 0:00:06.5]} 56... Rxh8
{[%clk 0:00:06.6]} 57. Kxh8 {[%clk 0:00:07.4]} 57... Nxe4 {[%clk 0:00:07.4]} 58.
Bxe5 {[%clk 0:00:07.7]} 58... Nxg5 {[%clk 0:00:07.5]} 1/2-1/2

[Event "Early-Titled-Tuesday-Blitz-April-02-2024"]
[Site "Chess.com"]
[Date "2024.04.02"]
[Round "3"]
[White "Incognito_Knight"]
[Black "Mikhail_Bryakin"]
[Result "1-0"]
[WhiteElo "2731"]
[BlackElo "2909"]
[TimeControl "180+1"]
[EndTime "8:28:53 PDT"]
[Termination "Incognito_Knight won on time"]

1. e4 {[%clk 0:03:00.9]} 1... d5 {[%clk 0:02:54.5]} 2. exd5 {[%clk 0:02:59.8]}
2... Nf6 {[%clk 0:02:55.2]} 3. d4 {[%clk 0:02:58.9]} 3... Bg4 {[%clk 0:02:53.9]}
4. f3 {[%clk 0:02:59.1]} 4... Bf5 {[%clk 0:02:53.8]} 5. g4 {[%clk 0:02:53.6]}
5... Bg6 {[%clk 0:02:53.4]} 6. c4 {[%clk 0:02:52.3]} 6... e6 {[%clk 0:02:47.6]}
7. Nc3 {[%clk 0:02:52.3]} 7... exd5 {[%clk 0:02:45.7]} 8. g5 {[%clk 0:02:52.7]}
8... Nh5 {[%clk 0:02:45.1]} 9. Nxd5 {[%clk 0:02:47.4]} 9... Bd6 {[%clk
0:02:32.2]} 10. Qe2+ {[%clk 0:02:41.1]} 10... Kf8 {[%clk 0:02:27.9]} 11. Be3
{[%clk 0:02:35.6]} 11... c6 {[%clk 0:02:26]} 12. Nc3 {[%clk 0:02:34.6]} 12...
Nf4 {[%clk 0:02:25.9]} 13. Qd2 {[%clk 0:02:27.7]} 13... Qxg5 {[%clk 0:02:21.2]}
14. O-O-O {[%clk 0:01:59.5]} 14... Qh4 {[%clk 0:02:03.9]} 15. Ne4 {[%clk
0:01:47.1]} 15... Bxe4 {[%clk 0:01:39.9]} 16. fxe4 {[%clk 0:01:48]} 16... Ng6
{[%clk 0:01:35.6]} 17. e5 {[%clk 0:01:42.1]} 17... Be7 {[%clk 0:01:30.7]} 18.
Nf3 {[%clk 0:01:41.1]} 18... Qg4 {[%clk 0:01:29.9]} 19. Be2 {[%clk 0:01:35.2]}
19... Na6 {[%clk 0:01:17.7]} 20. Rhf1 {[%clk 0:01:21.6]} 20... Qd7 {[%clk
0:01:12.1]} 21. Kb1 {[%clk 0:01:13.7]} 21... Rd8 {[%clk 0:01:09.2]} 22. Ng5
{[%clk 0:01:07.3]} 22... Bxg5 {[%clk 0:01:07.2]} 23. Bxg5 {[%clk 0:01:08.2]}
23... Re8 {[%clk 0:01:07.3]} 24. Rf2 {[%clk 0:00:49.8]} 24... Kg8 {[%clk
0:01:01.3]} 25. Rdf1 {[%clk 0:00:48]} 25... Rf8 {[%clk 0:00:57.7]} 26. h4 {[%clk
0:00:44.9]} 26... h6 {[%clk 0:00:50.3]} 27. h5 {[%clk 0:00:45.4]} 27... Ne7
{[%clk 0:00:44.8]} 28. Bf6 {[%clk 0:00:40.5]} 28... gxf6 {[%clk 0:00:30.1]} 29.
exf6 {[%clk 0:00:41.4]} 29... Ng6 {[%clk 0:00:30.8]} 30. hxg6 {[%clk 0:00:24.8]}
30... fxg6 {[%clk 0:00:31.7]} 31. Rg1 {[%clk 0:00:22.7]} 31... Kf7 {[%clk
0:00:25.8]} 32. c5 {[%clk 0:00:16.2]} 32... Nc7 {[%clk 0:00:25.7]} 33. Bd3
{[%clk 0:00:13]} 33... Rfg8 {[%clk 0:00:24.8]} 34. Re1 {[%clk 0:00:06.2]} 34...
Nd5 {[%clk 0:00:23.9]} 35. Qc2 {[%clk 0:00:03.4]} 35... h5 {[%clk 0:00:07.7]}
36. Rg1 {[%clk 0:00:03.5]} 36... Rh6 {[%clk 0:00:07.8]} 37. Qd2 {[%clk
0:00:03.1]} 37... Rgh8 {[%clk 0:00:06.7]} 38. Re1 {[%clk 0:00:03.4]} 38... h4
{[%clk 0:00:04.5]} 39. Bc4 {[%clk 0:00:03.9]} 39... Kf8 {[%clk 0:00:04.6]} 40.
Bxd5 {[%clk 0:00:03.5]} 40... Qxd5 {[%clk 0:00:05.1]} 41. f7 {[%clk 0:00:03.8]}
41... Kg7 {[%clk 0:00:05]} 42. f8=Q+ {[%clk 0:00:03.8]} 42... Rxf8 {[%clk
0:00:05.5]} 43. Rxf8 {[%clk 0:00:04.5]} 43... Rh5 {[%clk 0:00:03.3]} 44. Rf2
{[%clk 0:00:04.3]} 44... Rg5 {[%clk 0:00:03.1]} 45. Rfe2 {[%clk 0:00:04.2]}
45... Kh6 {[%clk 0:00:03.4]} 46. Re5 {[%clk 0:00:04]} 46... Qd8 {[%clk
0:00:04.1]} 47. Qxg5+ {[%clk 0:00:03.5]} 47... Qxg5 {[%clk 0:00:04.5]} 48. Rxg5
{[%clk 0:00:04.4]} 48... Kxg5 {[%clk 0:00:05.4]} 49. Re7 {[%clk 0:00:02.5]}
49... h3 {[%clk 0:00:05.6]} 50. Rxb7 {[%clk 0:00:02.7]} 50... Kg4 {[%clk
0:00:06.1]} 51. Rh7 {[%clk 0:00:02.8]} 51... g5 {[%clk 0:00:06.6]} 52. d5 {[%clk
0:00:03.3]} 52... cxd5 {[%clk 0:00:06.8]} 53. c6 {[%clk 0:00:04.2]} 53... Kg3
{[%clk 0:00:07.7]} 54. c7 {[%clk 0:00:04.7]} 54... h2 {[%clk 0:00:08.6]} 55.
c8=Q {[%clk 0:00:05.4]} 1-0

[Event "Early-Titled-Tuesday-Blitz-April-02-2024"]
[Site "Chess.com"]
[Date "2024.04.02"]
[Round "3"]
[White "Barmen_EV"]
[Black "EdmundPlayer"]
[Result "1-0"]
[WhiteElo "2579"]
[BlackElo "2280"]
[TimeControl "180+1"]
[EndTime "8:28:53 PDT"]
[Termination "Barmen_EV won on time"]

1. e4 {[%clk 0:02:58.7]} 1... c6 {[%clk 0:02:51.2]} 2. d4 {[%clk 0:02:50.9]}
2... d5 {[%clk 0:02:51.2]} 3. e5 {[%clk 0:02:51.8]} 3... c5 {[%clk 0:02:50.2]}
4. c3 {[%clk 0:02:52]} 4... Nc6 {[%clk 0:02:49.5]} 5. h3 {[%clk 0:02:52.5]} 5...
e6 {[%clk 0:02:45.9]} 6. Nf3 {[%clk 0:02:51.8]} 6... Qb6 {[%clk 0:02:43]} 7. Bd3
{[%clk 0:02:50.3]} 7... cxd4 {[%clk 0:02:41.8]} 8. c4 {[%clk 0:02:50.5]} 8...
dxc4 {[%clk 0:02:23]} 9. Bxc4 {[%clk 0:02:51.4]} 9... Bc5 {[%clk 0:01:54.3]} 10.
O-O {[%clk 0:02:50.5]} 10... Nge7 {[%clk 0:01:51.3]} 11. a3 {[%clk 0:02:50.8]}
11... a5 {[%clk 0:01:50.8]} 12. Nbd2 {[%clk 0:02:44.7]} 12... Ng6 {[%clk
0:01:49.6]} 13. Qe2 {[%clk 0:02:35.9]} 13... Bd7 {[%clk 0:01:33.3]} 14. h4
{[%clk 0:02:31.4]} 14... Qc7 {[%clk 0:01:21]} 15. Re1 {[%clk 0:02:28.8]} 15...
h6 {[%clk 0:00:55.3]} 16. h5 {[%clk 0:02:26.3]} 16... Nge7 {[%clk 0:00:54]} 17.
Ne4 {[%clk 0:02:25.7]} 17... b6 {[%clk 0:00:49.5]} 18. Bf4 {[%clk 0:02:22.7]}
18... O-O {[%clk 0:00:40.8]} 19. Bd3 {[%clk 0:02:20.8]} 19... Nd5 {[%clk
0:00:39.1]} 20. Bd2 {[%clk 0:02:09.8]} 20... Qd8 {[%clk 0:00:37.1]} 21. Rac1
{[%clk 0:01:37]} 21... Be7 {[%clk 0:00:32]} 22. Ng3 {[%clk 0:01:25.6]} 22... f5
{[%clk 0:00:27.5]} 23. exf6 {[%clk 0:01:25.2]} 23... Nxf6 {[%clk 0:00:27.7]} 24.
Ne5 {[%clk 0:01:20.3]} 24... Nxe5 {[%clk 0:00:23.3]} 25. Qxe5 {[%clk 0:01:21.2]}
25... Rc8 {[%clk 0:00:22.5]} 26. Ne4 {[%clk 0:01:02.7]} 26... Rxc1 {[%clk
0:00:19.5]} 27. Rxc1 {[%clk 0:01:03.6]} 27... Nd5 {[%clk 0:00:16.6]} 28. Nd6
{[%clk 0:00:55]} 28... Bxd6 {[%clk 0:00:16.3]} 29. Qxd6 {[%clk 0:00:55]} 29...
Qe7 {[%clk 0:00:11]} 30. Qxe7 {[%clk 0:00:35]} 30... Nxe7 {[%clk 0:00:11.9]} 31.
Rc7 {[%clk 0:00:35.5]} 31... Rd8 {[%clk 0:00:11.3]} 32. Rb7 {[%clk 0:00:36]}
32... Nd5 {[%clk 0:00:10.5]} 33. Bc4 {[%clk 0:00:25.3]} 33... Bc6 {[%clk
0:00:10.3]} 34. Ra7 {[%clk 0:00:25.7]} 34... b5 {[%clk 0:00:08.9]} 35. Ba2
{[%clk 0:00:24.8]} 35... a4 {[%clk 0:00:07.3]} 36. Ra6 {[%clk 0:00:24.5]} 36...
Rd6 {[%clk 0:00:06.8]} 37. b3 {[%clk 0:00:13.1]} 37... axb3 {[%clk 0:00:06.3]}
38. Bxb3 {[%clk 0:00:14]} 38... Kf7 {[%clk 0:00:06.7]} 39. a4 {[%clk 0:00:14.6]}
39... bxa4 {[%clk 0:00:06.6]} 40. Bxa4 {[%clk 0:00:15.5]} 40... Ne7 {[%clk
0:00:06.7]} 41. Bb4 {[%clk 0:00:14.3]} 41... Bxa4 {[%clk 0:00:06.6]} 42. Bxd6
{[%clk 0:00:12.9]} 42... Bb5 {[%clk 0:00:03.4]} 43. Ra7 {[%clk 0:00:12.9]} 43...
d3 {[%clk 0:00:03.1]} 44. Rxe7+ {[%clk 0:00:12.4]} 44... Kf6 {[%clk 0:00:03.8]}
45. Ra7 {[%clk 0:00:03]} 45... d2 {[%clk 0:00:04.7]} 46. Ra1 {[%clk 0:00:03.4]}
46... Ba4 {[%clk 0:00:02.8]} 47. Bb4 {[%clk 0:00:04]} 47... d1=Q+ {[%clk
0:00:03]} 48. Rxd1 {[%clk 0:00:04.6]} 48... Bxd1 {[%clk 0:00:03.7]} 49. f3
{[%clk 0:00:05.5]} 49... Bc2 {[%clk 0:00:03.9]} 50. Bc3+ {[%clk 0:00:05.4]}
50... Kf5 {[%clk 0:00:03.7]} 51. Bxg7 {[%clk 0:00:04.9]} 51... Kg5 {[%clk
0:00:04.1]} 52. g4 {[%clk 0:00:05.1]} 52... Bd1 {[%clk 0:00:04]} 53. Kf2 {[%clk
0:00:05.5]} 53... Bc2 {[%clk 0:00:03.6]} 54. Bf8 {[%clk 0:00:05.1]} 54... Bd1
{[%clk 0:00:03.7]} 55. Be7+ {[%clk 0:00:05.6]} 55... Kf4 {[%clk 0:00:03.9]} 56.
Bd6+ {[%clk 0:00:04.3]} 56... Kg5 {[%clk 0:00:03.4]} 57. Be5 {[%clk 0:00:04.7]}
57... Bc2 {[%clk 0:00:02.7]} 58. Kg3 {[%clk 0:00:05.2]} 1-0